bitfinex-derivatives/quotes_ETHF0:USTF0_20251216
["timestamp","ask_amount","ask_price","bid_price","bid_amount"]
[1765919375140,2.14122286,2942.5,2942.4,1.5058]
[1765919375540,2.91032286,2942.5,2942.4,1.5058]
[1765919375932,0.7314,2942.1,2942.0,1.9234]
[1765919376134,2.11839403,2942.1,2942.0,1.9234]
[1765919376542,1.38699403,2942.3,2942.0,1.9234]
[1765919376840,2.87879403,2942.3,2942.2,1.4729]
[1765919377041,1.49532883,2942.5,2942.0,0.4505]
[1765919377241,2.87879403,2942.4,2942.3,1.4729]
[1765919377433,1.38699403,2942.4,2942.3,1.4729]
[1765919377633,2.11839403,2942.4,2942.3,1.4729]
[1765919377834,2.87879403,2942.4,2942.3,1.4729]
[1765919378541,2.11839403,2942.4,2942.3,1.4729]
[1765919379039,2.87879403,2942.4,2942.3,1.4729]
[1765919379345,2.11839403,2942.4,2942.3,1.4729]
[1765919380544,0.73492883,2942.5,2942.4,1.4729]
[1765919381241,1.49532883,2942.5,2942.4,1.4729]
[1765919381545,1.49532883,2942.5,2942.4,0.7423]
[1765919383742,0.00352883,2942.5,2942.4,2.85989403]
[1765919384149,2.883e-05,2942.5,2942.4,2.85989403]
[1765919384647,2.87879403,2943.3,2943.2,1.4729]
[1765919384844,1.81410548,2943.5,2943.4,1.4729]
[1765919385045,40.8,2943.6,2943.5,1.9316]
[1765919385452,0.7314,2943.6,2943.5,1.9316]
[1765919385641,1.49440979,2943.6,2943.5,1.93530832]
[1765919386340,1.49440979,2943.6,2943.5,0.00370832]
[1765919386543,1.66429979,2943.6,2943.5,0.00370832]
[1765919386738,1.66429979,2943.6,2943.3,0.00510386]
[1765919386739,1.4918,2943.1,2943.0,1.201]
[1765919386940,2.87879403,2943.1,2942.5,0.4587]
[1765919387151,0.7314,2942.6,2942.5,1.9316]
[1765919387549,2.87879403,2942.9,2942.8,0.7423]
[1765919387748,2.87879403,2942.9,2942.8,0.74493348]
[1765919387941,0.00260979,2943.6,2943.0,0.4587]
[1765919387942,1.49440979,2943.6,2943.0,0.4587]
[1765919388243,2.87879403,2943.5,2943.4,1.4729]
[1765919388642,2.11839403,2943.5,2943.4,1.4729]
[1765919390258,1.38699403,2943.5,2943.4,1.4729]
[1765919390747,0.00260979,2943.6,2943.5,1.9316]
[1765919391639,1.38699403,2944.5,2944.4,0.7423]
[1765919391842,3.04860403,2945.0,2944.9,0.7423]
[1765919392144,3.04860403,2945.0,2944.9,1.4729]
[1765919392847,3.05217976,2945.0,2944.9,0.7465875]
[1765919393150,3.05217976,2945.0,2944.7,0.00509511]
[1765919393151,1.4918,2944.8,2944.7,0.00509511]
[1765919393542,1.66162,2944.8,2944.7,0.00509511]
[1765919393744,1.4918,2944.1,2943.5,0.4587]
[1765919394141,1.4918,2944.1,2944.0,0.7423]
[1765919394365,1.4918,2944.1,2944.0,1.9316]
[1765919394550,0.16985,2944.4,2944.3,0.7423]
[1765919394853,1.66165,2944.4,2944.3,0.7423]
[1765919395156,0.7314,2944.2,2944.1,1.47799511]
[1765919396159,1.4918,2944.2,2944.1,0.00509511]
[1765919397061,0.7314,2944.2,2944.1,1.47799511]
[1765919397557,1.4918,2944.2,2944.1,1.47799511]
[1765919398251,1.4918,2944.2,2944.1,0.74739511]
[1765919400156,1.4918,2944.2,2944.1,0.00509511]
[1765919400455,0.57848573,2945.0,2944.3,1.4729]
[1765919400647,0.17338573,2945.0,2944.3,1.4729]
[1765919400847,0.90478573,2945.0,2944.9,1.4729]
[1765919401053,0.00357573,2945.0,2944.9,1.4729]
[1765919402358,0.16979,2945.3,2944.9,1.4729]
[1765919402660,0.7314,2945.1,2945.0,0.4587]
[1765919402855,1.4918,2945.1,2945.0,1.201]
[1765919403163,0.7314,2945.1,2945.0,1.9316]
[1765919403358,0.00410257,2945.1,2945.0,1.9316]
[1765919403553,0.00509511,2945.3,2945.2,1.4729]
[1765919404060,1.66006,2946.0,2945.5,0.429]
[1765919404261,1.66006,2946.0,2945.9,0.7162]
[1765919404463,1.5396,2945.6,2945.5,0.429]
[1765919404662,1.54209905,2945.6,2945.5,0.00402325]
[1765919404960,1.5396,2945.1,2944.0,0.4587]
[1765919405159,1.5396,2945.1,2944.5,0.46379511]
[1765919405955,0.1698,2945.2,2944.5,0.46379511]
[1765919405956,0.1698,2945.2,2945.1,1.5062]
[1765919406265,1.54209905,2945.6,2945.0,0.429]
[1765919406463,0.7807,2945.1,2945.0,1.9352]
[1765919406661,1.5396,2945.1,2944.5,0.46760191]
[1765919406855,2.0794548,2945.6,2945.5,1.9352]
[1765919406856,1.54209905,2945.6,2945.5,1.9352]
[1765919407160,0.78319905,2945.6,2945.5,1.9352]
[1765919407863,1.54209905,2945.6,2945.5,1.9352]
[1765919408064,0.78319905,2945.6,2945.5,1.9352]
[1765919408262,1.54209905,2945.6,2945.5,1.9352]
[1765919408961,1.54209905,2945.6,2945.0,0.429]
[1765919408962,0.7807,2945.1,2945.0,1.9352]
[1765919409564,1.5396,2945.1,2944.5,0.46760191]
[1765919409862,1.5396,2944.6,2944.5,1.18380191]
[1765919410463,0.7807,2944.6,2944.5,1.97380191]
[1765919411067,1.70942,2944.8,2944.7,0.7162]
[1765919412268,0.95052,2944.8,2944.7,1.5062]
[1765919412465,1.70942,2944.8,2944.7,1.5062]
[1765919412663,2.07695575,2945.3,2944.7,1.5062]
[1765919413370,0.7807,2944.8,2944.7,1.5062]
[1765919413863,0.1698,2945.2,2944.7,1.5062]
[1765919414269,0.7807,2944.6,2944.5,1.97380191]
[1765919414568,1.5396,2944.6,2944.5,1.18380191]
[1765919414957,1.5396,2944.6,2944.5,1.97380191]
[1765919415162,0.7807,2944.6,2944.5,1.97380191]
[1765919415766,2.24676575,2945.0,2944.5,1.97380191]
[1765919417665,3.61655575,2944.6,2944.5,0.00890191]
[1765919417958,3.78638575,2944.6,2944.5,0.00890191]
[1765919419871,1.5396,2944.1,2943.5,0.429]
[1765919420872,1.54469511,2944.1,2943.5,0.43754797]
[1765919422368,0.00509511,2944.1,2944.0,1.9352]
[1765919425477,0.78579511,2944.1,2944.0,1.9352]
[1765919425867,0.00509511,2944.1,2944.0,1.9352]
[1765919431385,2.24676575,2945.1,2944.0,1.9352]
[1765919431586,2.07695575,2945.1,2944.0,1.9352]
[1765919431785,1.5396,2944.1,2944.0,1.9352]
[1765919431987,0.7807,2944.1,2944.0,1.9352]
[1765919432187,0.4102,2945.0,2944.0,1.9352]
[1765919432589,0.00336155,2944.8,2944.0,1.9352]
[1765919433480,0.16983,2944.7,2944.0,1.9352]
[1765919433681,0.7807,2944.1,2944.0,1.9352]
[1765919433980,1.5396,2944.1,2943.5,0.43754797]
[1765919434180,0.16985,2944.3,2944.2,1.5114]
[1765919434376,0.94545,2944.3,2944.2,1.5114]
[1765919434984,0.00336155,2944.8,2944.2,1.5114]
[1765919435287,1.69028155,2944.8,2944.7,0.77]
[1765919435593,1.69028155,2944.8,2944.0,0.4694]
[1765919435594,1.5171,2944.6,2944.0,0.4694]
[1765919435988,1.5171,2944.6,2944.5,0.77]
[1765919436687,1.5171,2944.6,2944.5,2.0129]
[1765919436894,0.7789,2944.6,2944.5,2.0129]
[1765919437089,0.94873,2944.7,2944.6,1.5624]
[1765919437292,1.68693,2944.7,2944.6,1.5624]
[1765919437893,0.78226155,2944.8,2944.7,1.5624]
[1765919438486,0.00336155,2944.8,2944.7,1.5624]
[1765919439691,0.78226155,2944.8,2944.7,1.5624]
[1765919440095,0.00336155,2944.8,2944.7,1.5624]
[1765919441295,1.52046155,2944.8,2944.7,0.77]
[1765919441494,1.52046155,2944.8,2944.7,1.5624]
[1765919441995,0.00336155,2944.8,2944.7,1.5624]
[1765919442892,0.78226155,2944.8,2944.7,1.5624]
[1765919443095,0.7789,2944.6,2944.5,1.2205]
[1765919443299,0.7789,2944.6,2944.5,2.0129]
[1765919443488,0.00336155,2944.8,2944.7,1.5624]
[1765919446100,1.68937905,2945.6,2945.5,2.0129]
[1765919447295,0.00249905,2945.6,2945.5,2.0129]
[1765919450198,0.78139905,2945.6,2945.5,2.0129]
[1765919450398,1.51959905,2945.6,2945.5,2.0129]
[1765919450600,0.00249905,2945.6,2945.5,2.0129]
[1765919450901,0.78139905,2945.6,2945.5,2.0129]
[1765919451104,1.51959905,2945.6,2945.5,2.0129]
[1765919451602,1.51959905,2945.6,2945.5,1.2205]
[1765919452900,1.5171,2945.4,2945.3,1.56749511]
[1765919453506,1.5171,2945.4,2945.3,0.00509511]
[1765919453901,1.5171,2945.1,2945.0,0.77]
[1765919454097,1.5171,2945.1,2944.5,0.4505]
[1765919454498,1.5171,2945.1,2945.0,0.77]
[1765919455100,1.5171,2944.9,2944.8,1.56749511]
[1765919456005,1.5171,2944.9,2944.8,0.00509511]
[1765919457301,1.5171,2944.9,2944.8,0.77509511]
[1765919457501,1.5171,2944.9,2944.8,1.56749511]
[1765919459001,1.5171,2944.9,2944.8,0.77509511]
[1765919459995,1.5171,2944.9,2944.8,0.00509511]
[1765919463097,1.5171,2944.9,2944.8,0.77509511]
[1765919463298,1.5171,2944.9,2944.8,1.56749511]
[1765919463610,1.5171,2944.9,2944.8,0.77509511]
[1765919464810,0.7789,2944.9,2944.8,1.56749511]
[1765919465306,1.5426,2944.9,2944.8,1.56749511]
[1765919465911,0.7789,2944.9,2944.8,1.56749511]
[1765919466211,0.16982,2945.0,2944.9,1.5703]
[1765919466402,1.67452,2945.0,2944.9,1.5703]
[1765919467207,1.5047,2944.9,2944.8,0.78239511]
[1765919467512,1.5047,2944.9,2944.8,0.00509511]
[1765919467912,1.5047,2944.9,2944.8,0.78239511]
[1765919469513,1.5047,2944.9,2944.8,1.57539511]
[1765919474416,0.00509511,2945.3,2944.8,1.57539511]
[1765919474613,1.50979511,2945.3,2945.2,1.5703]
[1765919474814,1.50979511,2945.3,2945.2,0.7773]
[1765919475118,1.5047,2945.1,2945.0,2.012]
[1765919475317,1.5047,2944.9,2944.8,1.57539511]
[1765919475518,1.6745,2945.2,2945.1,1.5703]
[1765919476119,0.741,2944.9,2944.8,1.57539511]
[1765919476419,1.5047,2944.9,2944.8,1.57539511]
[1765919477024,1.67452,2944.9,2944.8,0.00509511]
[1765919480121,1.67452,2944.9,2944.8,0.78239511]
[1765919480420,1.67452,2944.9,2944.8,0.00509511]
[1765919481616,1.67452,2944.9,2944.8,0.78239511]
[1765919482622,1.67452,2944.9,2944.8,0.00509511]
[1765919483026,1.67452,2944.9,2944.8,0.78239511]
[1765919483322,0.16982,2944.9,2944.8,1.57539511]
[1765919483522,1.67452,2944.9,2944.8,0.78239511]
[1765919483721,1.67452,2944.9,2944.8,0.00509511]
[1765919488735,0.3159,2944.5,2943.5,0.45395286]
[1765919488925,1.38336765,2945.0,2944.1,1.5703]
[1765919489228,0.4679,2945.0,2944.1,1.5703]
[1765919489426,40.8,2944.9,2944.1,1.5703]
[1765919489620,0.91546765,2944.8,2944.1,1.5703]
[1765919489825,1.5047,2944.3,2944.2,1.57539511]
[1765919490625,1.5047,2944.3,2944.2,0.78239511]
[1765919491028,1.67454,2944.5,2944.4,1.5703]
[1765919491330,1.5047,2944.3,2944.2,1.57539511]
[1765919492318,1.67455,2944.3,2944.2,0.00509511]
[1765919492629,1.5047,2943.6,2943.5,1.23125286]
[1765919492824,0.741,2943.6,2943.5,2.02425286]
[1765919493324,0.741,2944.9,2944.8,1.5703]
[1765919493832,1.5047,2944.9,2944.8,1.5703]
[1765919494528,0.741,2944.9,2944.8,1.5703]
[1765919494830,1.4622,2944.9,2944.8,1.5703]
[1765919495734,0.16977,2945.8,2945.2,1.547]
[1765919499137,1.4816,2945.1,2945.0,1.947]
[1765919500035,1.4816,2945.1,2945.0,1.1896]
[1765919501434,2.07633159,2945.4,2945.2,0.7411]
[1765919501635,1.48669511,2945.3,2945.2,0.7411]
[1765919502236,1.4816,2945.1,2945.0,1.947]
[1765919502632,0.00509511,2945.3,2945.0,1.947]
[1765919502633,0.00509511,2945.3,2945.2,1.4985]
[1765919502832,0.16974,2946.3,2945.5,1.9476]
[1765919503836,0.00509511,2946.2,2945.5,1.9476]
[1765919504429,0.77109511,2946.2,2946.1,1.4985]
[1765919504736,0.77109511,2946.2,2946.1,1.50270677]
[1765919505238,0.00509511,2946.2,2946.1,1.50270677]
[1765919506227,2.40479021,2947.5,2946.8,1.4985]
[1765919506431,0.16968,2947.4,2946.8,1.4985]
[1765919506932,1.4816,2946.6,2946.5,1.1902]
[1765919507240,0.76931005,2946.6,2946.5,1.9476]
[1765919508736,0.766,2946.2,2946.1,1.50270677]
[1765919508937,1.4816,2946.2,2946.1,0.74530677]
[1765919509340,1.4816,2946.2,2946.1,1.50270677]
[1765919510043,1.4816,2946.2,2946.1,0.74530677]
[1765919510735,1.4816,2946.2,2946.1,0.00420677]
[1765919512743,1.65134,2946.2,2946.1,0.00420677]
[1765919520248,2.12025,2946.0,2945.9,0.00509511]
[1765919520654,42.92025,2946.0,2945.9,0.00509511]
[1765919521058,42.92025,2946.0,2945.9,0.00852554]
[1765919521956,0.16977,2945.8,2945.0,0.4485]
[1765919522156,0.766,2945.1,2945.0,1.947]
[1765919522553,2.07489021,2945.7,2945.6,1.4985]
[1765919522956,2.84089021,2945.7,2945.6,1.50188521]
[1765919523156,3.55649021,2945.7,2945.6,1.50188521]
[1765919525060,3.55649021,2945.7,2945.6,0.74448521]
[1765919525855,3.72626021,2945.7,2945.6,0.00338521]
[1765919527164,3.01066021,2945.7,2945.6,1.47698521]
[1765919527562,3.74636021,2945.7,2945.6,1.47698521]
[1765919528570,0.16977,2945.7,2945.6,1.47698521]
[1765919528866,0.16974,2946.3,2945.6,1.47698521]
[1765919529067,1.63634,2946.3,2946.2,1.4736]
[1765919529256,1.63634,2946.3,2946.2,0.7547]
[1765919530769,1.4666,2946.1,2946.0,1.9118]
[1765919531467,1.4666,2946.1,2945.6,0.00338521]
[1765919531468,1.4666,2945.7,2945.6,0.00338521]
[1765919532068,1.4666,2945.7,2945.6,0.75808521]
[1765919532266,1.4666,2945.7,2945.6,1.47698521]
[1765919534063,1.4666,2945.7,2945.6,0.00338521]
[1765919534970,1.4666,2945.7,2945.6,0.75808521]
[1765919535470,1.4666,2945.7,2945.6,1.47698521]
[1765919535766,0.7309,2945.7,2945.6,1.47698521]
[1765919535966,0.16977,2945.8,2945.7,1.4736]
[1765919536167,1.63633,2946.4,2946.3,1.4736]
[1765919536366,1.4666,2946.1,2945.6,0.00338521]
[1765919536769,1.4666,2945.7,2945.6,0.75808521]
[1765919537068,1.4666,2945.7,2945.6,1.47698521]
[1765919538269,1.4666,2945.7,2945.6,0.00338521]
[1765919538467,2.00918,2945.5,2945.4,0.00509511]
[1765919538671,0.7309,2944.8,2944.7,1.4736]
[1765919539263,0.7309,2944.6,2944.5,1.9227]
[1765919539564,0.1698,2945.2,2944.5,1.92693837]
[1765919539760,0.00509511,2945.1,2944.6,0.00509511]
[1765919540172,0.7309,2944.7,2944.6,1.47869511]
[1765919540671,0.00509511,2945.1,2944.6,1.47869511]
[1765919540672,0.73599511,2945.1,2945.0,1.9118]
[1765919540872,0.00509511,2945.1,2945.0,1.9118]
[1765919541772,0.73599511,2945.1,2945.0,1.9118]
[1765919542971,1.47169511,2945.1,2945.0,1.9118]
[1765919543769,0.73599511,2945.1,2945.0,1.9118]
[1765919543970,0.00509511,2945.1,2945.0,1.9118]
[1765919544979,0.73599511,2945.1,2945.0,1.9118]
[1765919546569,1.47169511,2945.1,2945.0,0.7547]
[1765919549673,1.47169511,2945.1,2945.0,1.4736]
[1765919550075,1.47169511,2945.1,2944.6,0.00509511]
[1765919550780,0.7309,2944.7,2944.6,1.47869511]
[1765919551373,2.11530356,2944.7,2944.6,1.47869511]
[1765919551875,2.85100356,2944.7,2944.6,1.47869511]
[1765919552287,2.85100356,2944.7,2944.6,0.00509511]
[1765919552483,2.85100356,2944.7,2944.6,1.47869511]
[1765919552884,2.85100356,2944.7,2944.6,0.75979511]
[1765919553386,1.4666,2944.7,2944.6,0.75979511]
[1765919553577,0.7309,2944.7,2944.6,1.47869511]
[1765919553780,1.63643,2944.7,2944.6,0.00509511]
[1765919555186,1.63643,2944.7,2944.6,0.77439511]
[1765919555382,1.63643,2944.7,2944.6,0.00509511]
[1765919556889,1.63643,2944.7,2944.6,1.58529511]
[1765919557588,1.63643,2944.7,2944.6,0.79149511]
[1765919559586,1.63643,2944.7,2944.6,0.00509511]
[1765919562384,1.63643,2944.7,2942.6,1.5802]
[1765919562385,1.5738,2942.7,2942.6,1.5802]
[1765919562582,3.397,2943.9,2943.1,1.5802]
[1765919562583,2.5240639,2943.8,2943.1,1.5802]
[1765919562785,40.96989,2943.7,2943.6,1.5802]
[1765919562982,40.96989,2943.7,2943.6,0.7864]
[1765919563178,40.97267927,2943.7,2943.6,0.78961444]
[1765919563387,1.57658927,2943.7,2943.6,1.58341444]
[1765919563692,1.57658927,2943.7,2943.6,0.78961444]
[1765919563887,1.57658927,2943.7,2943.6,0.00321444]
[1765919568688,1.9781,2943.5,2943.4,0.00509511]
[1765919568994,0.7915,2942.6,2942.5,2.0324]
[1765919569191,1.5738,2942.6,2942.5,2.0324]
[1765919569488,1.5738,2942.6,2942.5,0.7864]
[1765919569696,1.5738,2942.6,2942.5,1.58323163]
[1765919570085,1.5738,2942.6,2942.5,0.00303163]
[1765919572593,1.5738,2942.6,2942.5,0.78943163]
[1765919573094,1.5738,2942.6,2942.5,0.00303163]
[1765919573598,1.5738,2942.6,2942.5,0.78943163]
[1765919574994,1.5738,2942.6,2942.5,0.00303163]
[1765919575398,2.9604628,2942.6,2942.5,0.00303163]
[1765919576197,2.9604628,2942.6,2942.5,0.78943163]
[1765919578003,0.7915,2942.6,2942.5,2.02593163]
[1765919578202,1.5738,2942.6,2942.5,2.02593163]
[1765919578694,1.5738,2942.6,2942.5,0.00303163]
[1765919578890,1.74376,2942.4,2942.3,0.00339674]
[1765919579097,1.5566228,2942.4,2942.3,1.58359674]
[1765919579507,2.3481228,2942.4,2942.3,1.58359674]
[1765919579696,3.1304228,2942.4,2942.3,1.58359674]
[1765919579897,3.1304228,2942.4,2942.3,1.58679297]
[1765919580400,0.7915,2941.1,2941.0,1.2365]
[1765919580601,1.3866628,2941.1,2941.0,2.0229]
[1765919580990,1.3866628,2941.1,2941.0,8.0229]
[1765919581402,0.00416753,2941.1,2941.0,8.02730714]
[1765919583400,40.8,2941.9,2941.8,1.5802]
[1765919583603,1.5738,2941.6,2941.5,1.5802]
[1765919584300,1.57698168,2941.6,2941.5,1.5802]
[1765919584603,0.00318168,2941.6,2941.5,2.0464]
[1765919584906,0.77358168,2941.6,2941.5,2.0464]
[1765919585110,0.00318168,2941.6,2941.5,2.0464]
[1765919586601,1.50128168,2941.6,2941.5,1.5802]
[1765919587297,0.00318168,2941.6,2941.5,2.0464]
[1765919590400,0.77358168,2941.6,2941.5,2.0464]
[1765919591202,1.50128168,2941.6,2941.5,0.7864]
[1765919591906,1.50128168,2941.6,2941.5,1.5583]
[1765919592106,1.4981,2941.4,2941.3,1.50789511]
[1765919593804,0.7704,2941.4,2941.3,1.50789511]
[1765919594013,0.17319168,2941.6,2941.5,1.969]
[1765919594403,1.67129168,2941.6,2941.5,1.969]
[1765919597914,0.00318168,2941.6,2941.5,1.969]
[1765919600514,0.77358168,2941.6,2941.5,1.969]
[1765919602710,1.50128168,2941.6,2941.5,1.969]
[1765919603011,1.50128168,2941.6,2941.3,0.00509511]
[1765919603012,1.4981,2941.4,2941.3,1.50789511]
[1765919604811,1.4981,2941.4,2941.3,0.00509511]
[1765919605516,1.4981,2941.4,2941.3,0.73599511]
[1765919608214,2.45617376,2941.4,2941.3,0.73599511]
[1765919608416,2.45617376,2941.4,2941.3,1.50789511]
[1765919609905,2.62619376,2941.4,2941.3,0.00509511]
[1765919610113,1.66814,2941.1,2941.0,0.00440714]
[1765919610313,0.17005,2940.9,2939.9,0.1701]
[1765919610616,0.4659,2941.0,2939.4,4.23316458]
[1765919610919,0.94047,2940.6,2940.5,1.969]
[1765919611215,0.94047,2940.6,2940.5,1.97322507]
[1765919611820,1.66817,2940.6,2940.5,1.97322507]
[1765919612916,1.66817,2940.6,2940.5,1.50702507]
[1765919616620,0.89323,2941.2,2941.1,1.5469]
[1765919616822,0.17003,2941.2,2941.1,1.5469]
[1765919617322,1.4771,2941.5,2941.4,1.5469]
[1765919619119,0.72638168,2941.6,2941.5,2.0008]
[1765919619519,0.00318168,2941.6,2941.5,2.0008]
[1765919620209,1.48028168,2941.6,2941.5,1.5469]
[1765919620623,1.48028168,2941.6,2941.5,2.0008]
[1765919621117,0.7232,2941.1,2941.0,2.0008]
[1765919621426,2.11054304,2941.5,2941.4,1.5469]
[1765919621918,1.38734304,2941.5,2941.4,1.5469]
[1765919622109,2.11054304,2941.5,2941.4,1.5469]
[1765919622914,3.29664304,2941.5,2941.4,1.5469]
[1765919623119,3.29664304,2941.5,2941.0,0.4539]
[1765919623310,2.86444304,2941.3,2941.2,1.5469]
[1765919623712,2.86444304,2941.3,2941.2,0.7723]
[1765919624220,1.4771,2941.1,2941.0,0.7723]
[1765919624529,2.86444304,2941.1,2941.0,0.7723]
[1765919624826,1.9093,2941.0,2940.9,0.7723]
[1765919625026,3.29664304,2941.0,2940.9,0.7723]
[1765919625722,2.86444304,2941.0,2940.9,1.5469]
[1765919626726,3.03447304,2941.2,2941.1,1.5469]
[1765919626924,3.03447304,2941.2,2940.5,0.45812507]
[1765919627223,3.29664304,2941.0,2940.9,0.7723]
[1765919628924,3.29664304,2941.0,2940.9,1.5469]
[1765919629730,1.55737304,2941.2,2941.1,1.5469]
[1765919630024,2.28057304,2941.2,2941.1,1.5469]
[1765919630228,3.03447304,2941.2,2941.1,1.5469]
[1765919631020,2.28057304,2941.2,2941.1,1.5469]
[1765919631329,2.86444304,2941.4,2941.3,1.5469]
[1765919634028,2.86444304,2941.4,2941.3,0.7723]
[1765919634328,1.9093,2941.0,2940.5,0.45812507]
[1765919634824,0.4322,2941.0,2940.5,2.00502507]
[1765919635026,1.1554,2941.0,2940.9,0.7723]
[1765919635225,1.9093,2941.0,2940.9,0.7723]
[1765919635433,1.9093,2941.0,2940.5,0.45812507]
[1765919635821,2.86444304,2940.8,2940.7,1.5469]
[1765919637430,2.11054304,2940.8,2940.7,1.5469]
[1765919640935,2.11054304,2941.0,2940.9,1.5469]
[1765919641132,1.55737304,2941.2,2940.9,1.5469]
[1765919641331,2.28057304,2941.2,2941.1,1.5469]
[1765919641535,3.03447304,2941.2,2941.1,1.5469]
[1765919644939,3.03476489,2941.2,2941.1,1.5469]
[1765919645538,3.03476489,2941.2,2941.1,0.7723]
[1765919646242,3.03476489,2941.2,2941.1,1.5072]
[1765919647626,1.64713,2941.2,2941.1,1.5072]
[1765919647843,0.89323,2941.2,2941.1,1.5072]
[1765919648141,1.67613,2941.2,2941.1,1.5072]
[1765919649451,0.17003,2941.2,2941.1,1.5072]
[1765919650137,2.96423489,2941.5,2941.4,1.4959]
[1765919650440,2.96423489,2941.5,2941.4,0.761]
[1765919650441,3.40503489,2941.5,2941.4,0.761]
[1765919650744,2.0174,2941.0,2940.5,0.45812507]
[1765919650952,3.40503489,2941.0,2940.9,1.4959]
[1765919651239,2.96423489,2941.0,2940.9,1.4959]
[1765919653340,2.18133489,2941.0,2940.9,1.4959]
[1765919654235,2.96423489,2941.0,2940.9,1.4959]
[1765919665452,0.00318168,2941.6,2941.5,1.9653]
[1765919665851,2.96741657,2941.6,2941.1,0.17003]
[1765919666040,2.96741657,2941.6,2941.5,1.4959]
[1765919666545,2.18451657,2941.6,2941.5,1.9653]
[1765919667745,0.00318168,2941.6,2941.5,1.9653]
[1765919680963,0.75558168,2941.6,2941.5,1.9653]
[1765919681169,1.49998168,2941.6,2941.5,0.761]
[1765919681360,0.00318168,2941.6,2941.5,1.9437]
[1765919685372,0.61073,2943.0,2942.3,1.5428]
[1765919686074,2.10753,2943.0,2942.9,0.7943]
[1765919686468,2.11041744,2943.0,2942.9,0.79674922]
[1765919687369,1.94048744,2943.0,2942.9,1.54524922]
[1765919688271,1.94048744,2943.0,2942.9,0.79674922]
[1765919689380,1.94048744,2943.0,2942.9,1.54524922]
[1765919690778,3.32736995,2943.0,2942.9,0.00244922]
[1765919691276,3.32736995,2943.0,2942.9,0.79674922]
[1765919692172,1.94048744,2943.0,2942.9,1.54524922]
[1765919692573,1.94048744,2943.0,2942.9,0.79674922]
[1765919693478,1.94048744,2943.0,2942.9,0.00244922]
[1765919693683,1.4968,2942.8,2941.5,0.60421]
[1765919693880,1.9683,2942.5,2942.4,0.7943]
[1765919694782,1.9683,2942.5,2942.4,0.79681156]
[1765919695185,1.4968,2942.6,2942.5,0.7943]
[1765919696081,1.4968,2942.6,2942.5,1.5428]
[1765919696280,1.66674,2942.8,2942.7,1.5428]
[1765919696983,1.66674,2942.8,2942.7,0.7943]
[1765919698080,1.4968,2942.6,2942.5,1.2285]
[1765919698283,1.9683,2942.5,2942.4,0.00251156]
[1765919698482,2.88368251,2942.5,2942.4,1.54531156]
[1765919698682,3.35518251,2942.5,2942.4,0.79681156]
[1765919698887,3.35518251,2942.5,2942.4,0.00251156]
[1765919699586,3.35518251,2942.5,2942.4,0.79681156]
[1765919699787,3.35518251,2942.5,2942.4,0.00251156]
[1765919700288,3.35518251,2942.5,2942.4,0.79681156]
[1765919700487,0.7524,2942.6,2942.5,1.977]
[1765919700688,0.44368744,2943.0,2942.4,1.54531156]
[1765919700689,1.4968,2942.5,2942.4,1.54531156]
[1765919700891,1.4968,2942.5,2942.4,0.79681156]
[1765919701089,2.88368251,2942.8,2942.7,0.7943]
[1765919701383,1.9683,2942.5,2942.4,0.00251156]
[1765919701590,3.52514251,2942.5,2942.4,0.00251156]
[1765919702282,0.7524,2942.5,2942.4,1.54531156]
[1765919702684,1.4968,2942.8,2942.7,1.5428]
[1765919702883,1.4968,2942.8,2942.7,0.7943]
[1765919703284,1.4968,2942.6,2942.5,1.5428]
[1765919703490,0.7524,2942.6,2942.5,1.977]
[1765919703892,3.07451251,2942.9,2942.8,1.5239]
[1765919704292,3.07451251,2942.9,2942.8,0.7943]
[1765919704494,0.7304,2942.6,2942.5,1.925]
[1765919704793,1.4957,2942.6,2942.5,1.925]
[1765919705797,1.4957,2942.6,2942.5,1.4908]
[1765919706596,0.7304,2942.6,2942.5,1.9504]
[1765919706898,1.4957,2942.6,2942.5,1.9504]
[1765919707799,1.9429,2942.5,2942.4,0.76371156]
[1765919708001,1.9429,2942.5,2942.4,0.00251156]
[1765919708199,1.9429,2942.5,2942.4,0.76371156]
[1765919708400,1.9429,2942.5,2942.4,1.49331156]
[1765919708601,1.9429,2942.5,2942.4,0.76371156]
[1765919708800,1.9429,2942.5,2942.4,1.49331156]
[1765919709696,1.9429,2942.5,2942.4,0.76371156]
[1765919709896,1.4957,2942.5,2942.4,1.49331156]
[1765919714704,0.7304,2942.5,2942.4,1.49331156]
[1765919715104,1.4957,2942.5,2942.4,1.49331156]
[1765919716005,1.9429,2942.5,2942.4,0.00251156]
[1765919716801,1.9429,2942.5,2942.4,1.49331156]
[1765919719000,1.4957,2942.5,2942.4,1.49331156]
[1765919719208,0.7304,2942.5,2942.4,1.49331156]
[1765919719511,1.9429,2942.5,2942.4,0.76371156]
[1765919721011,1.9429,2942.5,2942.4,0.00251156]
[1765919724409,1.9429,2942.5,2942.4,0.76371156]
[1765919724608,3.32919255,2942.5,2942.4,0.00251156]
[1765919724804,3.49915255,2942.5,2942.4,0.00251156]
[1765919725007,1.4957,2941.7,2941.6,5.72396458]
[1765919725207,1.4957,2941.7,2941.6,1.4908]
[1765919725404,1.4957,2942.0,2941.9,1.4908]
[1765919725605,1.9429,2942.5,2942.4,0.7612]
[1765919725811,1.9429,2942.5,2942.4,1.4908]
[1765919726014,1.9429,2942.5,2942.4,0.7655437]
[1765919726309,1.9429,2942.5,2942.4,1.4951437]
[1765919726310,1.4957,2942.5,2942.4,1.4951437]
[1765919726507,1.66564,2942.7,2942.6,1.4908]
[1765919727417,1.66564,2942.7,2942.6,0.7612]
[1765919727616,1.66564,2942.7,2942.6,1.4908]
[1765919727910,1.4957,2942.7,2942.6,1.4908]
[1765919728222,1.93938744,2943.0,2942.9,1.4908]
[1765919728424,1.4957,2942.6,2942.5,1.9504]
[1765919729029,0.7304,2942.6,2942.5,1.9504]
[1765919729523,0.44368744,2943.0,2942.4,0.0043437]
[1765919729524,1.9429,2942.5,2942.4,0.7655437]
[1765919730528,1.9429,2942.5,2942.4,1.4951437]
[1765919730824,1.4957,2942.5,2942.4,1.4951437]
[1765919733019,2.88199255,2942.8,2942.7,0.7612]